{"text_format":"1","workbook":"xlsx","n_sheets":4,"sheets":["عضو 1","عضو 2","عضو 3","رئيس اللجنة"],"not_rendered":{"charts":0,"images":4,"macros":1,"external_links":0,"defined_names":0,"comments":0,"pivot_tables":0},"unopened":[],"bounds":{"document_bytes":16777216,"sheet_cells":100000,"rows_first":2000,"rows_last":500,"rows_between":2000,"halvings":0,"cell_chars":16384,"cell_head_chars":4096},"cells_cut":0,"cells_raw":0,"read":"whole","date_system":"1900"}

{"sheet":"عضو 1","index":0,"n_rows":36,"n_cols":17,"rows_kept":36,"cut":false,"hidden":false,"merged":[[35,4,35,6],[35,9,35,11],[7,3,7,4],[7,5,7,6],[7,7,7,8],[7,11,8,11],[7,0,8,0],[7,1,8,1],[7,12,8,12],[6,1,6,2],[6,3,6,4],[6,6,6,7],[6,8,6,9],[7,2,8,2],[7,9,7,10]]}
[]
[null,null,null,null,null,null,null,null,null,null,null,null,null,null,"الأولى","جنوب المدينة","ü"]
[null,null,null,null,null,null,null,null,null,null,null,null,null,null,"الثانية","شرق المدينة","û"]
[null,null,null,null,null,null,null,null,null,null,null,null,null,null,"الثالثة","شمال المدينة","ليلي"]
[null,null,null,null,null,null,null,null,null,null,null,null,null,null,"الرابعة","غرب المدينة"]
[null,null,null,null,null,"متابعة عضو لجنة تدقيق بيانات الطلاب - الفصل الدراسي الثاني - العام الدراسي 1439/1440هـ"]
[null,"متابعة تدقيق بيانات  اللجنة  /",null,"الأولى",null,null,"مكتب التعليم /",null,null,null,null,null,null,null,"الخامسة","الحناكية"]
["ت","المدرسة","عدد الطلاب","النظام الدراسي",null,"ملاحظات 1",null,"ملاحظات 2",null,"طباعة الشهادات",null,"ملاحظات الإدارة","الشهادات المحجوزة",null,"السادسة","بدر"]
[null,null,null,"فصلي","مقررات","عدد","نسبة","عدد","نسبة","نعم","لا",null,null,null,null,"خيبر"]
[1,1,100,null,null,50,{"$f":"IF(C10>0,IF(F10>0,100%-(F10/C10),100%),\"\")","v":0.5},10,{"$f":"IF(C10>0,IF(H10>0,100%-(H10/C10),100%),\"\")","v":0.9},null,null,null,null,null,null,"وادي الفرع"]
[2,2,100,null,null,50,0.5,10,0.9]
[3,null,null,null,null,null,{"$f":"IF(C12>0,IF(F12>0,100%-(F12/C12),100%),\"\")","v":""},null,{"$f":"IF(C12>0,IF(H12>0,100%-(H12/C12),100%),\"\")","v":""}]
[4,null,null,null,null,null,"",null,""]
[5,null,null,null,null,null,"",null,""]
[6,null,null,null,null,null,"",null,""]
[7,null,null,null,null,null,"",null,""]
[8,null,null,null,null,null,"",null,""]
[9,null,null,null,null,null,"",null,""]
[10,null,null,null,null,null,"",null,""]
[11,null,null,null,null,null,"",null,""]
[12,null,null,null,null,null,"",null,""]
[13,null,null,null,null,null,"",null,""]
[14,null,null,null,null,null,"",null,""]
[15,null,null,null,null,null,"",null,""]
[16,null,null,null,null,null,"",null,""]
[17,null,null,null,null,null,"",null,""]
[18,null,null,null,null,null,"",null,""]
[19,null,null,null,null,null,"",null,""]
[20,null,null,null,null,null,"",null,""]
[21,null,null,null,null,null,"",null,""]
[22,null,null,null,null,null,"",null,""]
[23,null,null,null,null,null,"",null,""]
[24,null,null,null,null,null,"",null,""]
[25,null,null,null,null,null,"",null,""]
[]
[null,"عضو اللجنة",null,"الاسم /",null,null,null,null,"التوقيع/"]

{"sheet":"عضو 2","index":1,"n_rows":36,"n_cols":17,"rows_kept":36,"cut":false,"hidden":false,"merged":[[7,11,8,11],[7,12,8,12],[35,4,35,6],[35,9,35,11],[6,1,6,2],[6,3,6,4],[6,6,6,7],[6,8,6,9],[7,7,7,8],[7,9,7,10],[7,0,8,0],[7,1,8,1],[7,2,8,2],[7,3,7,4],[7,5,7,6]]}
[]
[null,null,null,null,null,null,null,null,null,null,null,null,null,null,"الأولى","جنوب المدينة","ü"]
[null,null,null,null,null,null,null,null,null,null,null,null,null,null,"الثانية","شرق المدينة","û"]
[null,null,null,null,null,null,null,null,null,null,null,null,null,null,"الثالثة","شمال المدينة","ليلي"]
[null,null,null,null,null,null,null,null,null,null,null,null,null,null,"الرابعة","غرب المدينة"]
[null,null,null,null,null,"متابعة عضو لجنة تدقيق بيانات الطلاب - الفصل الدراسي الثاني - العام الدراسي 1439/1440هـ"]
[null,"متابعة تدقيق بيانات  اللجنة  /",null,"الأولى",null,null,"مكتب التعليم /",null,null,null,null,null,null,null,"الخامسة","الحناكية"]
["ت","المدرسة","عدد الطلاب","النظام الدراسي",null,"ملاحظات 1",null,"ملاحظات 2",null,"طباعة الشهادات",null,"ملاحظات الإدارة","الشهادات المحجوزة",null,"السادسة","بدر"]
[null,null,null,"فصلي","مقررات","عدد","نسبة","عدد","نسبة","نعم","لا",null,null,null,null,"خيبر"]
[1,3,100,null,null,98,{"$f":"IF(C10>0,IF(F10>0,100%-(F10/C10),100%),\"\")","v":2.0000000000000018E-2},10,{"$f":"IF(C10>0,IF(H10>0,100%-(H10/C10),100%),\"\")","v":0.9},null,null,null,null,null,null,"وادي الفرع"]
[2,4,100,null,null,98,2.0000000000000018E-2,10,0.9]
[3,null,null,null,null,null,{"$f":"IF(C12>0,IF(F12>0,100%-(F12/C12),100%),\"\")","v":""},null,{"$f":"IF(C12>0,IF(H12>0,100%-(H12/C12),100%),\"\")","v":""}]
[4,null,null,null,null,null,"",null,""]
[5,null,null,null,null,null,"",null,""]
[6,null,null,null,null,null,"",null,""]
[7,null,null,null,null,null,"",null,""]
[8,null,null,null,null,null,"",null,""]
[9,null,null,null,null,null,"",null,""]
[10,null,null,null,null,null,"",null,""]
[11,null,null,null,null,null,"",null,""]
[12,null,null,null,null,null,"",null,""]
[13,null,null,null,null,null,"",null,""]
[14,null,null,null,null,null,"",null,""]
[15,null,null,null,null,null,"",null,""]
[16,null,null,null,null,null,"",null,""]
[17,null,null,null,null,null,"",null,""]
[18,null,null,null,null,null,"",null,""]
[19,null,null,null,null,null,"",null,""]
[20,null,null,null,null,null,"",null,""]
[21,null,null,null,null,null,"",null,""]
[22,null,null,null,null,null,"",null,""]
[23,null,null,null,null,null,"",null,""]
[24,null,null,null,null,null,"",null,""]
[25,null,null,null,null,null,"",null,""]
[]
[null,"عضو اللجنة",null,"الاسم /",null,null,null,null,"التوقيع/"]

{"sheet":"عضو 3","index":2,"n_rows":36,"n_cols":17,"rows_kept":36,"cut":false,"hidden":false,"merged":[[7,11,8,11],[7,12,8,12],[35,4,35,6],[35,9,35,11],[6,1,6,2],[6,3,6,4],[6,6,6,7],[6,8,6,9],[7,7,7,8],[7,9,7,10],[7,0,8,0],[7,1,8,1],[7,2,8,2],[7,3,7,4],[7,5,7,6]]}
[]
[null,null,null,null,null,null,null,null,null,null,null,null,null,null,"الأولى","جنوب المدينة","ü"]
[null,null,null,null,null,null,null,null,null,null,null,null,null,null,"الثانية","شرق المدينة","û"]
[null,null,null,null,null,null,null,null,null,null,null,null,null,null,"الثالثة","شمال المدينة","ليلي"]
[null,null,null,null,null,null,null,null,null,null,null,null,null,null,"الرابعة","غرب المدينة"]
[null,null,null,null,null,"متابعة عضو لجنة تدقيق بيانات الطلاب - الفصل الدراسي الثاني - العام الدراسي 1439/1440هـ"]
[null,"متابعة تدقيق بيانات  اللجنة  /",null,"الأولى",null,null,"مكتب التعليم /",null,null,null,null,null,null,null,"الخامسة","الحناكية"]
["ت","المدرسة","عدد الطلاب","النظام الدراسي",null,"ملاحظات 1",null,"ملاحظات 2",null,"طباعة الشهادات",null,"ملاحظات الإدارة","الشهادات المحجوزة",null,"السادسة","بدر"]
[null,null,null,"فصلي","مقررات","عدد","نسبة","عدد","نسبة","نعم","لا",null,null,null,null,"خيبر"]
[1,5,100,null,null,70,{"$f":"IF(C10>0,IF(F10>0,100%-(F10/C10),100%),\"\")","v":0.30000000000000004},5,{"$f":"IF(C10>0,IF(H10>0,100%-(H10/C10),100%),\"\")","v":0.95},null,null,null,null,null,null,"وادي الفرع"]
[2,6,100,null,null,70,0.30000000000000004,5,0.95]
[3,null,null,null,null,null,{"$f":"IF(C12>0,IF(F12>0,100%-(F12/C12),100%),\"\")","v":""},null,{"$f":"IF(C12>0,IF(H12>0,100%-(H12/C12),100%),\"\")","v":""}]
[4,null,null,null,null,null,"",null,""]
[5,null,null,null,null,null,"",null,""]
[6,null,null,null,null,null,"",null,""]
[7,null,null,null,null,null,"",null,""]
[8,null,null,null,null,null,"",null,""]
[9,null,null,null,null,null,"",null,""]
[10,null,null,null,null,null,"",null,""]
[11,null,null,null,null,null,"",null,""]
[12,null,null,null,null,null,"",null,""]
[13,null,null,null,null,null,"",null,""]
[14,null,null,null,null,null,"",null,""]
[15,null,null,null,null,null,"",null,""]
[16,null,null,null,null,null,"",null,""]
[17,null,null,null,null,null,"",null,""]
[18,null,null,null,null,null,"",null,""]
[19,null,null,null,null,null,"",null,""]
[20,null,null,null,null,null,"",null,""]
[21,null,null,null,null,null,"",null,""]
[22,null,null,null,null,null,"",null,""]
[23,null,null,null,null,null,"",null,""]
[24,null,null,null,null,null,"",null,""]
[25,null,null,null,null,null,"",null,""]
[]
[null,"عضو اللجنة",null,"الاسم /",null,null,null,null,"التوقيع/"]

{"sheet":"رئيس اللجنة","index":3,"n_rows":81,"n_cols":17,"rows_kept":81,"cut":false,"hidden":false,"merged":[[6,1,6,2],[6,3,6,4],[6,6,6,7],[6,8,6,9],[7,0,8,0],[7,1,8,1],[7,2,8,2],[7,3,7,4],[7,5,7,6],[7,7,7,8],[7,9,7,10],[7,11,8,11],[7,12,8,12],[7,13,7,14],[37,4,37,6],[37,9,37,11]]}
[]
[]
[]
[]
[]
[null,null,null,null,null,"متابعة رئيس لجنة تدقيق بيانات الطلاب - الفصل الدراسي الثاني - العام الدراسي 1439/1440هـ"]
[null,"متابعة تدقيق بيانات  اللجنة  /",null,"الأولى",null,null,"مكتب التعليم /"]
["ت","المدرسة","عدد الطلاب","النظام الدراسي",null,"ملاحظات 1",null,"ملاحظات 2",null,"طباعة الشهادات",null,"ملاحظات الإدارة","الشهادات المحجوزة","متابعة الإرسال"]
[null,null,null,"فصلي","مقررات","عدد","نسبة","عدد","نسبة","نعم","لا",null,null,1,2]
[null,null,null,null,null,null,null,null,{"$f":"IF(H10>0,100%-(H10/C10),\"\")","v":""},null,null,null,null,null,null,null,"المطلوب /"]
[null,null,null,null,null,null,{"$f":"IF(C11>0,IF(F11>0,100%-(F11/C11),100%),\"\")","v":""},null,{"$f":"IF(H11>0,100%-(H11/C11),\"\")","v":""},null,null,null,null,null,null,null,"استيراد البيانات من الصفحات ( عضو 1 + عضو 2 + عضو 3 ) لصفحة رئيس اللجنة"]
[null,null,null,null,null,null,"",null,"",null,null,null,null,null,null,null,"بشكل متتالي"]
[null,null,null,null,null,null,"",null,""]
[null,null,null,null,null,null,"",null,""]
[null,null,null,null,null,null,"",null,""]
[null,null,null,null,null,null,"",null,""]
[null,null,null,null,null,null,"",null,""]
[null,null,null,null,null,null,"",null,""]
[null,null,null,null,null,null,"",null,""]
[null,null,null,null,null,null,"",null,""]
[null,null,null,null,null,null,"",null,""]
[null,null,null,null,null,null,"",null,""]
[null,null,null,null,null,null,"",null,""]
[null,null,null,null,null,null,"",null,""]
[null,null,null,null,null,null,"",null,""]
[null,null,null,null,null,null,"",null,""]
[null,null,null,null,null,null,"",null,""]
[null,null,null,null,null,null,"",null,""]
[null,null,null,null,null,null,"",null,""]
[null,null,null,null,null,null,"",null,""]
[null,null,null,null,null,null,"",null,""]
[null,null,null,null,null,null,"",null,""]
[null,null,null,null,null,null,"",null,""]
[null,null,null,null,null,null,"",null,""]
[26,null,null,null,null,null,{"$f":"IF(F35>0,100%-(F35/C35),\"\")","v":""},null,""]
[27,null,null,null,null,null,"",null,""]
[]
[null,"رئيس اللجنة",null,"الاسم /",null,null,null,null,"التوقيع/"]
[]
[]
[null,null,null,null,null,null,""]
[null,null,null,null,null,null,""]
[null,null,null,null,null,null,""]
[null,null,null,null,null,null,""]
[null,null,null,null,null,null,""]
[null,null,null,null,null,null,""]
[null,null,null,null,null,null,""]
[null,null,null,null,null,null,""]
[null,null,null,null,null,null,""]
[null,null,null,null,null,null,""]
[null,null,null,null,null,null,""]
[null,null,null,null,null,null,""]
[null,null,null,null,null,null,""]
[null,null,null,null,null,null,""]
[null,null,null,null,null,null,""]
[null,null,null,null,null,null,""]
[null,null,null,null,null,null,""]
[null,null,null,null,null,null,""]
[null,null,null,null,null,null,""]
[null,null,null,null,null,null,""]
[null,null,null,null,null,null,""]
[null,null,null,null,null,null,""]
[null,null,null,null,null,null,""]
[null,null,null,null,null,null,""]
[null,null,null,null,null,null,""]
[null,null,null,null,null,null,""]
[null,null,null,null,null,null,""]
[null,null,null,null,null,null,""]
[null,null,null,null,null,null,""]
[null,null,null,null,null,null,""]
[null,null,null,null,null,null,""]
[null,null,null,null,null,null,""]
[null,null,null,null,null,null,""]
[null,null,null,null,null,null,""]
[null,null,null,null,null,null,""]
[null,null,null,null,null,null,""]
[null,null,null,null,null,null,""]
[null,null,null,null,null,null,""]
[null,null,null,null,null,null,""]
[null,null,null,null,null,null,""]
[null,null,null,null,null,null,""]